bitfinex-derivatives/quotes_SOLF0:USTF0_20260104
["timestamp","ask_amount","ask_price","bid_price","bid_amount"]
[1767515751170,26.45207231,133.69,133.63,1.25148163]
[1767515758786,26.45207231,133.69,133.64,1.19865256]
[1767515761793,19.71707231,133.69,133.63,0.05282907]
[1767515762192,19.71707231,133.69,133.63,1.12246518]
[1767515762391,19.71707231,133.69,133.63,1.89701246]
[1767515762594,26.45217231,133.69,133.63,8.63501246]
[1767515763197,19.71707231,133.69,133.65,1.06963611]
[1767515763395,19.71707231,133.69,133.65,1.84418339]
[1767515764689,19.71707231,133.69,133.65,1.06963611]
[1767515765296,19.71707231,133.69,133.63,7.86046518]
[1767515766294,19.71707231,133.69,133.64,1.06963611]
[1767515767702,19.71707231,133.69,133.64,7.80693611]
[1767515773709,19.71707231,133.69,133.65,1.06963611]
[1767515775007,19.71707231,133.69,133.64,7.80693611]
[1767515775702,19.71707231,133.69,133.63,0.05282907]
[1767515776808,6.7356,133.68,133.63,0.05282907]
[1767515779308,26.45207231,133.69,133.63,0.05282907]
[1767515781111,26.45207231,133.69,133.63,7.86046518]
[1767515784315,27.22661959,133.69,133.63,0.05282907]
[1767515786320,27.22661959,133.69,133.63,6.79072907]
[1767515788609,27.22661959,133.69,133.63,0.05282907]
[1767515788817,20.49161959,133.69,133.63,0.05282907]
[1767515789914,6.736,133.67,133.63,0.05282907]
[1767515791413,6.7355,133.68,133.63,0.05282907]
[1767515795417,6.736,133.67,133.63,0.05282907]
[1767515797718,6.7365,133.66,133.63,0.05282907]
[1767515807120,6.7359,133.68,133.63,0.05282907]
[1767515814331,6.736,133.67,133.63,0.05282907]
[1767515820733,26.45247231,133.69,133.63,1.03756634]
[1767515820936,19.71707231,133.69,133.63,1.03756634]
[1767515821934,19.71707231,133.69,133.64,0.98473727]
[1767515825745,19.71707231,133.69,133.64,7.72223727]
[1767515833449,19.71707231,133.69,133.65,6.737]
[1767515838156,19.71707231,133.69,133.64,7.72213727]
[1767515844659,19.71707231,133.69,133.64,6.7374]
[1767515845161,20.92747305,133.69,133.63,0.05282907]
[1767515845362,1.21040074,133.68,133.63,0.05282907]
[1767515846953,6.7361,133.67,133.63,0.05282907]
[1767515850365,6.7355,133.68,133.63,0.05282907]
[1767515870593,19.71707231,133.69,133.63,1.00718006]
[1767515871185,19.71707231,133.69,133.64,7.69135099]
[1767515871386,19.71707231,133.69,133.65,0.95435099]
[1767515872295,17.762756,133.78,133.67,0.95435099]
[1767515872494,0.77452936,133.76,133.67,1.72888035]
[1767515872686,5.53641982,133.75,133.71,0.04989514]
[1767515873797,6.7326,133.74,133.71,0.04989514]
[1767515876697,6.78252035,133.74,133.67,8.46488035]
[1767515877801,6.78252035,133.74,133.69,0.0529345]
[1767515879599,0.04992035,133.74,133.69,1.00728549]
[1767515883305,6.78242035,133.74,133.69,1.00728549]
[1767515888405,6.733,133.73,133.69,1.00728549]
[1767515892801,0.04992035,133.74,133.69,1.00728549]
[1767515893003,104.6658,133.82,133.75,0.77452936]
[1767515893204,105.44032936,133.82,133.75,0.77452936]
[1767515893501,105.44032936,133.82,133.73,0.77452936]
[1767515893902,6.7299,133.79,133.76,0.04754787]
[1767515895409,6.7295,133.8,133.76,0.04754787]
[1767515897799,7.50342936,133.81,133.76,0.04754787]
[1767515905514,6.7289,133.81,133.76,0.04754787]
[1767515909822,7.50272936,133.83,133.76,6.77894787]
[1767515910522,7.50272936,133.83,133.76,7.65821661]
[1767515912113,7.50272936,133.83,133.77,6.7309]
[1767515912619,7.50272936,133.83,133.77,7.61016874]
[1767515913719,7.50272936,133.83,133.78,0.9096914]
[1767515914021,6.7274,133.85,133.79,0.95813893]
[1767515914812,6.7274,133.85,133.79,7.68803893]
[1767515915320,6.7274,133.85,133.79,0.95813893]
[1767515915918,0.77452936,133.86,133.8,0.9096914]
[1767515916514,88.34,133.88,133.8,0.9096914]
[1767515916715,1.2068844,133.89,133.83,0.05276191]
[1767515916914,88.34,133.9,133.83,0.05276191]
[1767515917115,1.2068844,133.91,133.83,0.96245331]
[1767515918007,6.7246,133.9,133.83,0.96245331]
[1767515919409,104.5958,133.91,133.83,0.96245331]
[1767515919613,105.8026844,133.91,133.86,0.05165817]
[1767515920117,194.1144844,133.92,133.86,0.05165817]
[1767515921023,6.7251,133.89,133.86,0.05165817]
[1767515923526,1.2068844,133.92,133.86,0.05165817]
[1767515924220,6.7245,133.9,133.86,0.05165817]
[1767515925730,7.9307844,133.92,133.86,0.05165817]
[1767515925925,1.2068844,133.92,133.86,0.96134957]
[1767515926329,1.2068844,133.92,133.86,0.05165817]
[1767515926533,88.3,133.93,133.86,0.96134957]
[1767515927926,95.0232,133.93,133.86,0.96134957]
[1767515929929,19.26138005,133.96,133.87,0.9096914]
[1767515930122,123.82208005,133.96,133.9,0.05075432]
[1767515930433,1.2068844,133.95,133.9,0.05075432]
[1767515930621,1.2068844,133.95,133.87,0.9096914]
[1767515931432,6.7232,133.93,133.87,0.9096914]
[1767515931634,6.7232,133.93,133.89,0.05213199]
[1767515932435,0.0512126,133.92,133.85,0.9096914]
[1767515933329,0.0512126,133.92,133.87,0.05762327]
[1767515933736,6.7246,133.9,133.87,0.05762327]
[1767515934435,5.2246,133.9,133.85,0.9096914]
[1767515934830,1.2068844,133.91,133.83,0.9096914]
[1767515935536,0.05585521,133.88,133.86,0.05066223]
[1767515935728,0.05585521,133.88,133.83,0.9096914]
[1767515936939,0.05585521,133.88,133.84,0.05478884]
[1767515940936,0.05585521,133.88,133.84,0.90447518]
[1767515941146,88.28,133.94,133.85,0.84968634]
[1767515942153,88.28,133.94,133.88,0.04894675]
[1767515942351,0.05075124,133.91,133.88,0.04894675]
[1767515947554,6.77475124,133.91,133.88,0.04894675]
[1767515953855,6.7244,133.9,133.88,0.04894675]
[1767515958163,6.7249,133.89,133.85,0.84968634]
[1767515958560,6.7249,133.89,133.83,0.84968634]
[1767515959263,0.05751065,133.87,133.85,0.05259226]
[1767515959462,104.6046,133.9,133.81,0.84968634]
[1767515959667,88.26,133.9,133.81,0.84968634]
[1767515960565,0.04910453,133.87,133.84,0.05461212]
[1767515962770,6.77510453,133.87,133.84,0.05461212]
[1767515966866,0.04910453,133.87,133.8,0.84968634]
[1767515967172,105.8222844,133.89,133.78,89.10968634]
[1767515967469,6.7264,133.86,133.79,0.84968634]
[1767515968058,0.0482088,133.84,133.81,0.05265145]
[1767515972074,6.7264,133.87,133.81,0.05265145]
[1767515972570,6.7267,133.86,133.81,0.05265145]
[1767515973171,0.04927536,133.85,133.81,0.05265145]
[1767515973668,6.77637536,133.85,133.81,0.05265145]
[1767515978671,0.04927536,133.85,133.81,0.05265145]
[1767515978972,0.04927536,133.85,133.81,0.95486756]
[1767515979178,193.64993734,133.91,133.82,1.67455345]
[1767515979375,5.53315683,133.9,133.82,1.67455345]
[1767515979678,193.64993734,133.91,133.82,1.67455345]
[1767515979877,5.53291387,133.9,133.82,1.67455345]
[1767515980076,104.6444,133.85,133.73,0.90221611]
[1767515980281,104.6608,133.83,133.73,0.90221611]
[1767515980471,0.05489369,133.8,133.73,0.90221611]
[1767515981578,0.05489369,133.8,133.75,0.04772774]
[1767515982882,6.73,133.79,133.75,0.04772774]
[1767515983483,6.7305,133.78,133.75,0.04772774]
[1767515984586,0.82723103,133.8,133.75,0.04772774]
[1767515985081,0.77233734,133.78,133.75,0.04772774]
[1767515985286,0.77233734,133.78,133.71,0.90221611]
[1767515985681,6.7315,133.76,133.71,0.90221611]
[1767515986391,0.05277273,133.75,133.72,0.05064545]
[1767515989089,6.78477273,133.75,133.72,0.05064545]
[1767515992996,6.78477273,133.75,133.69,0.90221611]
[1767515992997,6.7325,133.74,133.69,0.90221611]
[1767515994195,6.7325,133.74,133.7,0.04991316]
[1767515995592,0.05277273,133.75,133.7,0.95212927]
[1767515997896,6.78487273,133.75,133.7,0.04991316]
[1767516000195,0.77233734,133.74,133.7,0.04991316]
[1767516000899,6.733,133.73,133.7,0.04991316]
[1767516001305,6.733,133.73,133.68,0.90221611]
[1767516002297,0.77233734,133.74,133.69,0.05145261]
[1767516002504,0.05166109,133.72,133.69,0.05145261]
[1767516010019,0.77233734,133.77,133.7,0.82447877]
[1767516010317,0.77233734,133.78,133.71,1.59681611]
[1767516010513,0.77233734,133.78,133.71,0.82447877]
[1767516011322,0.05581343,133.76,133.73,0.0507142]
[1767516018616,6.78731343,133.76,133.73,0.0507142]
[1767516019515,6.78731343,133.76,133.68,8.33191611]
[1767516019516,0.82815077,133.76,133.68,8.33191611]
[1767516019714,0.82815077,133.76,133.69,0.82447877]
[1767516019715,0.77233734,133.76,133.69,0.82447877]
[1767516020324,6.7324,133.74,133.69,7.55947877]
[1767516020527,0.05663452,133.73,133.7,0.05498281]
[1767516041750,6.78963452,133.73,133.7,0.05498281]
[1767516047447,0.05663452,133.73,133.7,0.92748177]
[1767516048951,0.00659986,133.73,133.7,0.92748177]
[1767516049152,18.85658288,133.82,133.71,0.87249896]
[1767516049350,5.55167704,133.8,133.71,0.87249896]
[1767516049549,193.0387,133.81,133.71,0.87249896]
[1767516049752,5.55175449,133.8,133.71,0.87249896]
[1767516050056,6.7299,133.8,133.74,0.87249896]
[1767516050264,17.64744535,133.82,133.74,0.87249896]
[1767516050265,0.05054346,133.77,133.74,0.91995872]
[1767516050445,17.64744535,133.82,133.75,0.87249896]
[1767516051356,6.729,133.81,133.75,0.87249896]
[1767516051557,0.0499519,133.8,133.77,0.04772319]
[1767516053453,0.0499519,133.8,133.77,0.92022215]
[1767516053948,6.7272,133.85,133.77,0.92022215]
[1767516054259,192.9893,133.87,133.78,0.87249896]
[1767516054443,5.5409363,133.86,133.78,0.87249896]
[1767516054646,192.9893,133.87,133.78,0.87249896]
[1767516054857,5.5409363,133.86,133.78,0.87249896]
[1767516055155,0.05439968,133.84,133.81,0.0545633]
[1767516055857,6.78189968,133.84,133.81,0.0545633]
[1767516057062,0.05439968,133.84,133.76,0.87249896]
[1767516057455,0.05439968,133.84,133.76,2.08163649]
[1767516057657,6.78209968,133.84,133.78,0.87249896]
[1767516058257,6.78209968,133.84,133.8,0.04974925]
[1767516060968,0.05439968,133.84,133.8,0.04974925]
[1767516062668,0.05439968,133.84,133.8,0.92183233]
[1767516063258,0.05439968,133.84,133.81,7.60098308]
[1767516063462,105.80063753,133.92,133.82,0.87208308]
[1767516063768,88.32,133.91,133.82,0.87208308]
[1767516064568,0.05623334,133.88,133.85,0.05540241]
[1767516069368,0.05623334,133.88,133.85,0.92748549]
[1767516069577,108.77051758,133.96,133.86,0.87208308]
[1767516070371,6.7234,133.92,133.86,7.59828308]
[1767516070681,6.78047256,133.92,133.9,0.04830479]
[1767516071181,6.78047256,133.92,133.86,0.87208308]
[1767516072378,6.78047256,133.92,133.88,0.0477323]
[1767516075990,0.05707256,133.92,133.84,0.87208308]
[1767516076280,104.5831,133.93,133.84,0.87208308]
[1767516076670,6.7251,133.89,133.84,0.87208308]
[1767516077179,0.05463981,133.88,133.85,0.05421844]
[1767516080086,0.00633502,133.88,133.85,0.92630152]
[1767516081080,6.7233,133.93,133.87,0.87208308]
[1767516081977,6.7224,133.94,133.88,0.87208308]
[1767516082178,0.05536697,133.92,133.9,0.04964062]
[1767516091286,1.20913753,134.01,133.92,0.81963793]
[1767516091488,104.487,134.05,133.92,0.81963793]
[1767516091489,105.69613753,134.05,133.92,0.81963793]
[1767516091787,6.7199,133.99,133.93,0.81963793]
[1767516091981,105.71133753,134.03,133.93,0.81963793]
[1767516092390,0.05143674,133.99,133.97,0.05109366]
[1767516102291,6.7183,134.03,133.97,0.9220397]
[1767516102498,6.7183,134.03,133.97,0.87094604]
[1767516103501,0.05358502,134.01,133.99,0.04828897]
[1767516106603,0.77073142,134.07,134.0,0.87094604]
[1767516106798,0.77073142,134.08,134.0,0.87094604]
[1767516107304,0.77073142,134.08,134.01,0.87094604]
[1767516107709,6.717,134.05,134.03,0.05713956]
[1767516107894,6.717,134.05,134.01,0.87094604]
[1767516108299,6.717,134.05,133.99,0.87094604]
[1767516109011,0.0521073,134.03,134.01,0.05636376]
[1767516110909,6.7700073,134.03,134.01,0.05636376]
[1767516111208,0.0521073,134.03,134.01,0.05636376]
[1767516112513,6.7701073,134.03,133.99,0.87094604]
[1767516113610,6.7701073,134.03,134.0,0.05262839]
[1767516114001,6.7701073,134.03,133.97,6.7206]
[1767516114002,6.7186,134.02,133.97,0.87094604]
[1767516114207,0.82283872,134.03,133.94,0.87094604]
[1767516114406,0.77073142,134.03,133.95,0.87094604]
[1767516114813,0.77073142,134.01,133.93,0.87094604]
[1767516115317,0.04902456,133.98,133.96,0.04837707]
[1767516116503,1.29896792,134.07,133.96,0.91932311]
[1767516116707,67.04465379,134.14,134.01,0.87094604]
[1767516116708,104.4417,134.11,134.01,0.87094604]
[1767516116907,104.4417,134.11,134.02,0.87094604]
[1767516116908,105.21243142,134.11,134.02,0.87094604]
[1767516117107,0.77073142,134.09,134.02,0.87094604]
[1767516117313,0.77073142,134.07,133.99,0.87094604]
[1767516117717,0.05452708,134.04,134.02,0.05084]
[1767516120024,0.05452708,134.04,133.99,0.87094604]
[1767516120317,0.05452708,134.04,133.97,0.83170988]
[1767516120511,0.05452708,134.04,133.97,7.55250988]
[1767516120918,0.05452708,134.04,133.99,0.0496577]
[1767516121819,6.77202708,134.04,133.99,0.0496577]
[1767516122214,0.77073142,134.03,133.99,0.0496577]
[1767516122521,0.77073142,134.03,133.96,0.83170988]
[1767516122921,6.7185,134.02,133.96,0.83170988]
[1767516123422,0.05712409,134.0,133.98,0.05259473]
[1767516125222,0.05712409,134.0,133.93,7.55440988]
[1767516125623,0.05712409,134.0,133.94,0.83170988]
[1767516126425,0.05712409,134.0,133.96,0.05267934]
[1767516133433,6.77672409,134.0,133.96,0.05267934]
[1767516136734,0.82785551,134.0,133.96,0.05267934]
[1767516137634,6.7204,133.98,133.96,0.05267934]
[1767516138829,6.77692409,134.0,133.96,0.05267934]
[1767516143836,94.97692409,134.0,133.96,0.05267934]
[1767516150142,95.74765551,134.0,133.96,0.05267934]
[1767516156538,95.74765551,134.0,133.91,7.61671931]
[1767516156539,89.02785551,134.0,133.91,7.61671931]
[1767516156744,88.97073142,134.0,133.91,7.61671931]
[1767516157148,6.7205,133.98,133.91,7.61671931]
[1767516157548,6.7205,133.98,133.92,0.89331931]
[1767516157746,0.05110152,133.96,133.93,0.04880157]
[1767516160066,0.05110152,133.96,133.93,0.94212088]
[1767516165272,0.05110152,133.96,133.93,0.04880157]
[1767516182083,6.77260152,133.96,133.93,0.04880157]
[1767516182280,6.77260152,133.96,133.91,0.89331931]
[1767516183478,6.77260152,133.96,133.92,0.04883331]
[1767516191090,6.722,133.95,133.92,0.04883331]
[1767516199788,6.7224,133.94,133.89,6.7244]
[1767516199994,6.7224,133.94,133.88,0.94279114]
[1767516200195,104.543,133.98,133.88,0.94279114]
[1767516200785,5.54925685,133.97,133.88,0.94279114]
[1767516200984,0.04822935,133.94,133.92,0.05510964]
[1767516208198,6.77062935,133.94,133.87,7.66819114]
[1767516208500,0.04822935,133.94,133.87,0.94279114]
[1767516209302,0.04822935,133.94,133.89,0.99463863]
[1767516210698,126.9548,134.02,133.92,0.89566921]
[1767516210699,104.5148,134.02,133.92,0.89566921]
[1767516210900,93.7690994,134.01,133.92,0.89566921]
[1767516211101,5.5490994,134.0,133.92,0.89566921]
[1767516211412,6.7204,133.98,133.92,7.61896921]
[1767516211603,0.05071609,133.96,133.94,0.05470867]
[1767516211905,0.05483675,133.96,133.94,0.05470867]
[1767516217017,6.7204,133.99,133.94,0.994295]
[1767516218015,0.0563704,133.98,133.94,0.994295]
[1767516218917,6.7192,134.01,133.95,0.93958633]
[1767516219504,6.7184,134.02,133.95,0.93958633]
[1767516220117,0.05059872,134.0,133.95,0.93958633]
[1767516220810,0.05059872,134.0,133.96,6.7213]
[1767516221009,0.05059872,134.0,133.96,7.66088633]
[1767516223727,0.05059872,134.0,133.97,7.66048633]
[1767516224616,0.77062075,134.06,133.98,0.93958633]
[1767516225628,0.77062075,134.06,134.01,0.05569476]
[1767516225823,6.7174,134.04,134.01,0.05569476]
[1767516226221,6.76842446,134.04,134.01,0.05569476]
[1767516226618,0.05102446,134.04,134.01,0.05569476]
[1767516229426,6.7157,134.08,134.02,7.65778633]
[1767516229632,6.7157,134.08,134.03,0.93958633]
[1767516230529,0.05578142,134.07,134.04,0.054054]
[1767516235930,0.05578142,134.07,134.01,0.93958633]
[1767516237028,6.7164,134.06,134.03,0.05017747]
[1767516239231,6.77178142,134.07,134.03,0.05017747]
[1767516239434,7.54240217,134.07,134.03,0.05017747]
[1767516239827,0.05578142,134.07,134.03,0.9897638]
[1767516241429,172.79583392,134.16,134.04,0.97008666]
[1767516241430,104.4317,134.12,134.04,0.97008666]
[1767516241820,0.77062075,134.1,134.04,0.97008666]
[1767516242235,6.7139,134.11,134.05,0.97008666]
[1767516242530,0.04983482,134.09,134.07,0.05572929]
[1767516252235,6.7137,134.12,134.07,1.02581595]
[1767516253132,6.7131,134.13,134.08,0.97008666]
[1767516253337,0.05414605,134.11,134.08,0.97008666]
[1767516259841,6.76804605,134.11,134.07,0.05572929]
[1767516260046,0.05414605,134.11,134.07,0.05572929]
[1767516261047,0.77062075,134.1,134.04,0.97008666]
[1767516262150,0.05110015,134.08,134.06,0.04985248]
[1767516263949,6.76670015,134.08,134.06,0.04985248]
[1767516264150,6.76670015,134.08,134.04,0.97008666]
[1767516265151,6.76670015,134.08,134.05,0.0537367]
[1767516265748,7.5373209,134.08,134.05,0.0537367]
[1767516265947,0.77062075,134.07,134.02,7.68848666]
[1767516266345,0.77062075,134.07,134.03,0.97008666]
[1767516266957,0.77062075,134.07,134.04,0.04733629]
[1767516267257,7.48662075,134.07,134.04,0.04733629]
[1767516267555,0.77062075,134.07,134.04,0.04733629]
[1767516269344,7.5375209,134.08,134.04,0.04733629]
[1767516272152,0.05110015,134.08,134.04,0.04733629]
[1767516275464,0.05110015,134.08,134.05,0.91408882]
[1767516280472,0.05110015,134.08,134.04,0.96142511]
[1767516287785,0.05110015,134.08,134.05,0.91408882]
[1767516288179,6.7143,134.11,134.05,0.91408882]
[1767516288480,5.53115258,134.1,134.05,0.91408882]
[1767516288776,6.7143,134.11,134.05,0.91408882]
[1767516288976,5.53115575,134.1,134.05,0.91408882]
[1767516289180,0.05484935,134.09,134.05,0.91408882]
[1767516292594,0.05484935,134.09,134.06,0.91408882]
[1767516299483,0.05484935,134.09,134.04,0.96142511]
[1767516299484,6.76984935,134.09,134.04,0.96142511]
[1767516301294,0.05484935,134.09,134.04,0.96142511]
[1767516302304,0.05484935,134.09,134.04,0.04733629]
[1767516302997,6.7154,134.08,134.04,0.04733629]
[1767516303694,6.7159,134.07,134.04,0.04733629]
[1767516304793,6.7164,134.06,134.02,0.94065931]
[1767516305899,0.05356678,134.05,134.02,0.94065931]
[1767516306088,0.05356678,134.05,134.02,0.99208648]
[1767516306290,6.77046678,134.05,134.02,0.99208648]
[1767516306690,6.77046678,134.05,134.02,0.05142717]
[1767516308002,0.05356678,134.05,134.02,0.05142717]
[1767516311197,0.05356678,134.05,134.02,0.99208648]
[1767516316107,6.7159,134.07,134.02,0.99208648]
[1767516316305,6.7154,134.08,134.03,0.94065931]
[1767516316502,88.16,134.1,134.03,0.94065931]
[1767516317208,0.0492695,134.08,134.05,0.04791708]
[1767516320810,0.0492695,134.08,134.05,0.98857639]
[1767516321308,88.16,134.1,134.05,0.98857639]
[1767516321997,94.8746,134.1,134.05,0.98857639]
[1767516323312,0.05000057,134.09,134.05,0.98857639]
[1767516327406,6.76510057,134.09,134.05,0.98857639]
[1767516328322,0.05000057,134.09,134.05,0.98857639]
[1767516329818,0.05000057,134.09,134.06,0.94065931]
[1767516330917,6.7141,134.11,134.06,0.94065931]
[1767516332120,0.05549577,134.1,134.06,0.94065931]
[1767516335319,0.05549577,134.1,134.05,0.04791708]
[1767516336915,6.715,134.09,134.05,0.04791708]
[1767516339628,6.76989577,134.1,134.05,0.98468027]
[1767516342428,1.20276428,134.09,134.02,0.93676319]
[1767516342629,1.20276428,134.09,134.0,0.93676319]
[1767516343629,0.05403022,134.06,134.03,0.04981378]
[1767516343938,6.7171,134.05,134.0,0.93676319]
[1767516344836,6.7171,134.05,134.01,0.04779174]
[1767516347136,7.48767198,134.04,133.98,0.93676319]
[1767516348142,0.0493582,134.02,134.0,0.04911186]
[1767516360351,0.0493582,134.02,133.96,0.94429212]
[1767516360553,0.77027198,134.01,133.94,0.94429212]
[1767516361256,6.7194,134.0,133.95,0.94429212]
[1767516361451,0.04866972,133.99,133.96,0.0558006]
[1767516362951,6.76876972,133.99,133.96,0.0558006]
[1767516363149,6.76876972,133.99,133.93,0.94429212]
[1767516363346,6.7201,133.99,133.93,0.94429212]
[1767516363962,6.7194,134.0,133.95,0.94429212]
[1767516364250,88.95027198,134.04,133.97,0.94429212]
[1767516365256,0.05209594,134.02,133.99,0.05137576]
[1767516365460,6.77099594,134.02,133.99,0.05137576]
[1767516371356,6.77099594,134.02,133.95,0.94429212]
[1767516372458,6.77099594,134.02,133.97,0.04914912]
[1767516376161,6.77099594,134.02,133.97,0.99344124]
[1767516382864,0.77027198,134.07,133.99,0.94429212]
[1767516383161,88.18,134.06,133.99,0.94429212]
[1767516383464,6.7173,134.05,133.99,0.94429212]
[1767516384061,0.04702803,134.03,134.01,0.05254345]
[1767516386069,6.7163,134.07,134.01,0.99683557]
[1767516387170,0.05396069,134.05,134.01,0.99683557]
[1767516391874,0.05396069,134.05,134.01,0.05254345]
[1767516394769,0.05396069,134.05,134.01,1.06884453]
[1767516401482,0.05396069,134.05,134.02,1.01630108]
[1767516405469,0.05396069,134.05,133.98,1.01630108]
[1767516405669,1.20336001,134.05,133.98,1.01630108]
[1767516406270,6.718,134.03,133.98,1.01630108]
[1767516406682,0.04961282,134.02,133.99,0.05622087]
[1767516418693,6.76851282,134.02,133.97,1.01630108]
[1767516419893,6.76851282,134.02,133.98,0.05057957]
[1767516423491,6.7191,134.01,133.98,0.05057957]
[1767516423692,6.7191,134.01,133.95,0.93872937]
[1767516424092,0.04961282,134.02,133.96,0.93872937]
[1767516424610,0.04961282,134.02,133.98,0.05613868]
[1767516425998,6.76801282,134.02,133.98,0.05613868]
[1767516429105,6.7189,134.01,133.98,0.05613868]
[1767516435305,0.04961282,134.02,133.98,0.99486805]
[1767516437813,0.04961282,134.02,133.99,0.93872937]
[1767516442507,6.7176,134.04,133.99,0.93872937]
[1767516443216,88.18,134.06,134.0,0.93872937]
[1767516443716,0.04915755,134.04,134.0,0.93872937]
[1767516445108,0.04915755,134.04,134.01,0.0563752]
[1767516447019,0.04915755,134.04,134.01,0.99510457]
[1767516447322,6.7164,134.06,134.01,0.99510457]
[1767516448218,0.05479368,134.05,134.01,0.99510457]
[1767516451830,0.05479368,134.05,134.02,1.01540521]
[1767516452828,0.05479368,134.05,134.02,7.73380521]
[1767516454131,6.7159,134.08,134.03,0.92711486]
[1767516454431,94.8949,134.09,134.04,0.92711486]
[1767516455332,0.05527538,134.08,134.05,0.98145152]
[1767516461529,0.05527538,134.08,134.05,0.05433666]
[1767516461729,1.55527538,134.08,134.01,0.92711486]
[1767516461933,0.05527538,134.08,134.01,0.92711486]
[1767516462625,0.05527538,134.08,134.03,0.04949114]
[1767516462832,6.7168,134.06,134.03,0.04949114]
[1767516463032,1.55527538,134.08,133.99,0.92711486]
[1767516463235,1.20336001,134.05,133.97,0.92711486]
[1767516464134,0.05229645,134.02,134.0,0.04754282]
[1767516466644,6.7178,134.04,134.0,0.97465768]
[1767516467744,0.0476048,134.03,134.0,0.97465768]
[1767516468134,0.0476048,134.03,134.0,0.04754282]
[1767516470246,0.77041656,134.06,134.0,0.97465768]
[1767516470939,7.48681656,134.06,134.01,0.92711486]
[1767516471246,0.05052305,134.05,134.01,0.92711486]
[1767516479547,6.76762305,134.05,134.01,0.92711486]
[1767516479748,0.05052305,134.05,134.0,0.04754282]
[1767516479947,0.77041656,134.04,134.0,0.04754282]
[1767516480644,6.7181,134.03,134.0,0.04754282]
[1767516484457,88.16,134.03,133.97,0.91976314]
[1767516485343,88.93041656,134.03,133.97,0.91976314]
[1767516485544,0.05151464,134.01,133.99,0.05389608]
[1767516489868,6.7173,134.05,133.99,0.97365922]
[1767516490069,95.66771656,134.05,133.99,0.91976314]
[1767516490966,0.05593073,134.03,133.99,0.91976314]
[1767516491266,0.05593073,134.03,134.01,0.05308562]
[1767516491464,6.77393073,134.03,133.97,0.91976314]
[1767516491666,7.54434729,134.03,133.97,0.91976314]
[1767516492868,7.54434729,134.03,133.99,0.04726228]
[1767516496568,7.54434729,134.03,133.96,6.721]
[1767516496569,0.77041656,134.01,133.95,7.64156314]
[1767516497161,0.77041656,134.01,133.96,0.91976314]
[1767516497865,0.05422554,134.0,133.97,0.05352751]
[1767516502574,0.05422554,134.0,133.97,0.97329065]
[1767516503365,0.77041656,134.03,133.97,0.97329065]
[1767516504471,0.05526737,134.01,133.97,0.97329065]
[1767516504972,0.05526737,134.01,133.98,0.91976314]
[1767516507577,6.7179,134.03,133.98,0.91976314]
[1767516508679,0.04918892,134.02,133.98,0.91976314]
[1767516509682,0.04918892,134.02,133.97,0.05352751]
[1767516510576,0.04918892,134.02,133.97,1.0213586]
[1767516510978,6.76798892,134.02,133.97,1.0213586]
[1767516511186,0.77041656,134.01,133.97,0.05352751]
[1767516512778,7.48941656,134.01,133.97,0.05352751]
[1767516513474,7.49031656,133.99,133.93,88.18]
[1767516513680,7.49031656,133.99,133.93,0.9706478]
[1767516514584,0.05496879,133.97,133.95,0.05116068]
[1767516517590,0.05496879,133.97,133.92,0.9706478]
[1767516518583,0.05496879,133.97,133.93,0.05000217]
[1767516518888,6.77586879,133.97,133.93,0.05000217]
[1767516520386,0.05496879,133.97,133.93,0.05000217]
[1767516523091,6.77586879,133.97,133.93,0.05000217]
[1767516524484,0.05496879,133.97,133.93,0.05000217]
[1767516524888,0.05496879,133.97,133.93,1.02064997]
[1767516525093,0.05496879,133.97,133.93,0.05000217]
[1767516526592,0.05496879,133.97,133.93,1.02064997]
[1767516526893,0.77041656,134.02,133.95,0.9706478]
[1767516527898,0.05693414,134.0,133.97,0.05065375]
[1767516530305,6.7184,134.02,133.97,1.02130155]
[1767516530504,6.7184,134.02,133.97,0.9706478]
[1767516531303,6.7184,134.02,133.95,0.9706478]
[1767516531603,6.77549849,134.01,133.98,0.04781952]
[1767516533604,6.77549849,134.01,133.95,0.9706478]
[1767516534596,6.77549849,134.01,133.97,0.04932737]
[1767516538806,6.77549849,134.01,133.94,6.7224]
[1767516538807,6.7195,134.0,133.94,6.7224]
[1767516539108,0.05649849,134.01,133.93,7.6935478]
[1767516539295,104.5019,134.03,133.93,7.6935478]
[1767516539807,104.5019,134.03,133.94,0.9706478]
[1767516539999,0.05435109,133.99,133.97,0.04926505]
[1767516543310,6.7189,134.01,133.97,0.04926505]
[1767516543311,88.2,134.03,133.97,0.04926505]
[1767516543510,88.2,134.03,133.96,0.96690517]
[1767516544214,94.9183,134.03,133.96,7.68810517]
[1767516544512,0.04861032,134.01,133.98,0.05553155]
[1767516548012,0.04861032,134.01,133.98,1.02243672]
[1767516548216,88.2,134.07,133.98,1.02243672]
[1767516548407,88.2,134.07,133.98,0.96690517]
[1767516549316,0.05554689,134.04,134.01,0.05112421]
[1767516557127,6.77304689,134.04,134.01,0.05112421]
[1767516561729,0.05554689,134.04,134.01,0.05112421]